Cogmind - Beta 9.3 @@@ ROGUE MODE // 2019.12.20 @ 00:08:10 // Winter2019/RPGLIKE Player: Dhoby_Ghaut Result: Self-destructed Performance ------------- Evolutions (2) 1000 Regions Visited (7) 1400 Robots Destroyed (20) 100 Value Destroyed (441) 441 Prototype IDs (22) 440 Alien Tech Used (0) 0 Bonus (1000) 1000 TOTAL SCORE: 4381 Bonus ------- Entered Garrisons 200 Used RIF Installer 500 Aligned with FarCom 300 Cogmind --------- Core Integrity 108/600 Matter 204/300 Energy 160/160 System Corruption 1% Temperature Cool (0) Movement Rolling (90) Location -8/Materials Parts ------- > --- POWER (1) -------- Light Nuclear Core > --- PROPULSION (2) --- Wheel Compact Wheel > --- UTILITY (2) ------ System Shield Trap Reconfigurator > --- WEAPON (3) ------- Light Assault Rifle Light Assault Rifle Flak Cannon > --- INVENTORY (4) ---- Compact Wheel Compact Wheel Light Assault Rifle Peak State ------------ > --- POWER ------------ Light Nuclear Core > --- PROPULSION ------- Wheel Compact Wheel > --- UTILITY ---------- System Shield Trap Reconfigurator > --- WEAPON ----------- Light Assault Rifle Light Assault Rifle Flak Cannon > --- INVENTORY -------- Compact Wheel Compact Wheel Light Assault Rifle [Rating: 22] Favorites ----------- Power Ion Engine Engine Ion Engine Power Core Light Nuclear Core Propulsion Compact Wheel Wheel Compact Wheel Utility System Shield Device Sensor Array Processor Targeting Computer Hackware System Shield Weapon Assault Rifle Energy Gun Small Laser Ballistic Gun Assault Rifle Ballistic Cannon Flak Cannon Build | -11 -10 -10 -10 -9 -8 -8 -8 ------- Run | Scr Mat Min Exi Min Mat Gar Mat Slots Evolved 4 | 2 . . . 1 1 . . Power . | . . . . . . . . Propulsion 1 | 1 . . . . . . . Utility 1 | . . . . 1 . . . Weapon 2 | 1 . . . . 1 . . Parts Attached 20 | 6 2 1 . 1 3 4 3 Power 2 | 1 . . . . . 1 . Engine 1 | 1 . . . . . . . Core 1 | . . . . . . 1 . Reactor . | . . . . . . . . Propulsion 2 | 2 . . . . . . . Treads . | . . . . . . . . Leg . | . . . . . . . . Wheel 2 | 2 . . . . . . . Hover . | . . . . . . . . Flight . | . . . . . . . . Utility 9 | . 2 1 . 1 2 . 3 Device 5 | . 1 1 . 1 . . 2 Storage . | . . . . . . . . Processor 2 | . 1 . . . 1 . . Hackware 2 | . . . . . 1 . 1 Protection . | . . . . . . . . Artifact . | . . . . . . . . Weapon 7 | 3 . . . . 1 3 . Energy Gun 1 | 1 . . . . . . . Energy Cannon . | . . . . . . . . Ballistic Gun 5 | 2 . . . . . 3 . Ballistic Cannon 1 | . . . . . 1 . . Launcher . | . . . . . . . . Special Weapon . | . . . . . . . . Impact Weapon . | . . . . . . . . Slashing Weapon . | . . . . . . . . Piercing Weapon . | . . . . . . . . Special Melee Weapon . | . . . . . . . . Unidentified Prototypes . | . . . . . . . . Parts Lost . | . . . . . . . . Power . | . . . . . . . . Propulsion . | . . . . . . . . Utility . | . . . . . . . . Weapon . | . . . . . . . . Highest Loss Streak . | . . . . . . . . Average Slot Usage (%) 99 | . 99 100 100 98 95 100 100 Engine 9 | . 16 16 16 14 12 2 . Core 4 | . . . . . . 9 12 Wheel 28 | . 33 33 33 28 26 25 25 Device 10 | . 6 16 16 26 3 . 6 Processor 4 | . 8 . . . 6 12 . Hackware 6 | . . . . . 11 12 17 Ballistic Gun 28 | . 33 33 33 28 26 25 25 Ballistic Cannon 5 | . . . . . 8 12 12 Naked Turns . | . . . . . . . . Heaviest Build 15 | 9 10 10 10 11 15 15 14 Greatest Support 26 | 26 26 26 26 26 26 26 26 Greatest Overweight (x) . | . . . . . . . . Average Overweight (x) . | . . . . . . . . Largest Inventory Capacity 4 | 3 3 3 3 3 3 4 4 Average Capacity 3 | 3 3 3 3 3 3 3 4 Most Carried 4 | 3 3 3 3 3 3 4 4 Average Carried 3 | 1 2 2 3 3 3 3 3 Final Capacity 4 | 3 3 3 3 3 3 4 4 Final Carried 4 | 3 3 3 3 3 3 4 3 Class Distribution -------------------- 39% | Mutant 35% | Gunner 17% | Skirmisher 7% | Hacker-Gunner Dominant Class ---------------- Mutant | -10/Materials Mutant | -10/Mines Mutant | -10/Exiles Skirmisher | -9/Mines Gunner | -8/Materials Gunner | -8/Garrison Hacker-Gunner | -8/Materials Resources | -11 -10 -10 -10 -9 -8 -8 -8 ----------- Run | Scr Mat Min Exi Min Mat Gar Mat Matter Collected 766 | 259 144 79 . 10 31 243 . Remotely 10 | . . . . 10 . . . Salvage Created 356 | . 151 . . . 31 174 . Parts 37 | . 11 . . . 2 24 . Haulers Intercepted . | . . . . . . . . Recyclers Shooed . | . . . . . . . . Parts Field Recycled . | . . . . . . . . Retrieved Matter . | . . . . . . . . Parts Self-Destructed . | . . . . . . . . Prevented . | . . . . . . . . Kills | -11 -10 -10 -10 -9 -8 -8 -8 ------- Run | Scr Mat Min Exi Min Mat Gar Mat Combat Hostiles Destroyed 18 | . 5 . . . . 13 . Guns 12 | . 5 . . . . 7 . Cannons 6 | . . . . . . 6 . Classes Destroyed 4 | . 3 . . . 1 . . Operator 1 | . 1 . . . . . . Watcher 1 | . . . . . 1 . . Swarmer 11 | . 1 . . . . 10 . Grunt 7 | . 4 . . . . 3 . Best Kill Streak 4 | . 2 . . . 1 4 . Combat Bots Only 4 | . 2 . . . . 4 . Max Kills in Single Turn 2 | . 1 . . . 1 2 . Gunslinging . | . . . . . . . . Exploded . | . . . . . . . . Melee . | . . . . . . . . Uniques/NPCs Destroyed . | . . . . . . . . Combat | -11 -10 -10 -10 -9 -8 -8 -8 -------- Run | Scr Mat Min Exi Min Mat Gar Mat Damage Taken 936 | . 310 . . 205 . 364 57 Core 747 | . 252 . . 159 . 292 44 Absorbed by Shields . | . . . . . . . . Redirected to Core 602 | . 180 . . 159 . 219 44 Core Remaining (%) 65 | 100 . . . 31 . . . Volleys Fired 57 | . 32 . . 1 2 21 1 Largest 3 | . 2 . . 2 3 3 3 Hottest 84 | . 40 . . 40 84 84 84 Shots Fired 138 | . 64 . . 2 6 63 3 Gun 114 | . 64 . . 2 4 42 2 Cannon 24 | . . . . . 2 21 1 Launcher . | . . . . . . . . Special . | . . . . . . . . Kinetic 138 | . 64 . . 2 6 63 3 Thermal . | . . . . . . . . Explosive . | . . . . . . . . Electromagnetic . | . . . . . . . . Robot Hit Streak 11 | . 11 . . 2 4 10 2 Robot Miss Streak 9 | . 3 . . . 3 9 2 Penetration Max . | . . . . . . . . Secondary Targets . | . . . . . . . . Shots Hit Robots 85 | . 45 . . 2 5 31 2 Core Hits 40 | . 13 . . 1 2 23 1 Critical Hits . | . . . . . . . . Critical Kills . | . . . . . . . . Critical Parts Destroyed . | . . . . . . . . Melee Attacks . | . . . . . . . . Impact . | . . . . . . . . Slashing . | . . . . . . . . Piercing . | . . . . . . . . Sneak Attacks . | . . . . . . . . Combat Hostiles . | . . . . . . . . Follow-up Attacks . | . . . . . . . . Damage Inflicted 1147 | . 550 . . 26 55 496 20 Guns 899 | . 550 . . 26 55 262 6 Cannons 248 | . . . . . . 234 14 Explosions . | . . . . . . . . Melee . | . . . . . . . . Ramming . | . . . . . . . . Kinetic 1147 | . 550 . . 26 55 496 20 Thermal . | . . . . . . . . Explosive . | . . . . . . . . Electromagnetic . | . . . . . . . . Impact . | . . . . . . . . Slashing . | . . . . . . . . Piercing . | . . . . . . . . Highest Corruption 1 | . . . . . 1 1 1 Average Corruption 1 | . . . . . 1 1 1 Corruption Purged . | . . . . . . . . Effects 2 | . . . . . . 2 . Message Errors 1 | . . . . . . 1 . Energy Discharges 1 | . . . . . . 1 . Overload Shots . | . . . . . . . . Overflow Damage . | . . . . . . . . Projectiles . | . . . . . . . . Explosions . | . . . . . . . . Melee . | . . . . . . . . Knockbacks 6 | . . . . . . 6 . Impact . | . . . . . . . . Kinetic 5 | . . . . . . 5 . Secondary 1 | . . . . . . 1 . Self-Inflicted Damage . | . . . . . . . . Shots . | . . . . . . . . Rammed . | . . . . . . . . Targets Rammed . | . . . . . . . . Kicked . | . . . . . . . . Crushed . | . . . . . . . . Highest Temperature 240 | . 2 . . . 28 240 48 Average Temperature 77 | . 2 . . . 15 89 28 Received Heat Transfer 228 | . 156 . . . . 54 18 Effects 2 | . . . . . . 2 . Interference 2 | . . . . . . 2 . Siege Activations . | . . . . . . . . Robots Corrupted . | . . . . . . . . Combat Hostiles . | . . . . . . . . Parts Fried . | . . . . . . . . Impact Corruptions . | . . . . . . . . Robots Melted . | . . . . . . . . Combat Hostiles . | . . . . . . . . Parts Melted . | . . . . . . . . Heat Transferred . | . . . . . . . . Parts Sabotaged . | . . . . . . . . Parts Stolen . | . . . . . . . . Parts Stripped . | . . . . . . . . Power Chain Reactions . | . . . . . . . . Missiles Intercepted . | . . . . . . . . Alert | -11 -10 -10 -10 -9 -8 -8 -8 ------- Run | Scr Mat Min Exi Min Mat Gar Mat Peak Influence 315 | . 145 56 . . 29 315 214 Average Influence 97 | . 68 56 . . 11 182 178 Maximum Alert Level 1 | . . . . . . 1 1 Low Security (%) 86 | 100 100 100 . 100 100 49 98 Level 1 13 | . . . . . . 50 1 Level 2 . | . . . . . . . . Level 3 . | . . . . . . . . Level 4 . | . . . . . . . . Level 5 . | . . . . . . . . High Security . | . . . . . . . . Max Security . | . . . . . . . . Squads Dispatched 3 | . 3 . . . . . . Investigation . | . . . . . . . . Extermination . | . . . . . . . . Reinforcement 3 | . 3 . . . . . . Assault . | . . . . . . . . Garrison . | . . . . . . . . Intercept . | . . . . . . . . Construction Impeded . | . . . . . . . . Haulers Reinforced . | . . . . . . . . Stealth | -11 -10 -10 -10 -9 -8 -8 -8 --------- Run | Scr Mat Min Exi Min Mat Gar Mat Distress Signals 1 | . 1 . . . . . . Communications Jammed . | . . . . . . . . Distress Signals . | . . . . . . . . Times Spotted 53 | . 18 . . 16 1 13 5 Peak Tracking Total 15 | . 5 . . 15 1 8 5 Tactical Retreats 6 | . 2 . . 2 . 2 . Traps | -11 -10 -10 -10 -9 -8 -8 -8 ------- Run | Scr Mat Min Exi Min Mat Gar Mat Traps Triggered 1 | . . . . . 1 . . Indirectly . | . . . . . . . . Trap Hack Attempts . | . . . . . . . . Triggered . | . . . . . . . . Disarmed . | . . . . . . . . Reprogrammed . | . . . . . . . . Reused 3 | . . . . . . . 3 Traps Reconfigurated 17 | . . . . . . . 17 Traps Extracted . | . . . . . . . . Installed . | . . . . . . . . Triggered 3 | . . . . . . . 3 Exploded 1 | . . . 1 . . . . Machines | -11 -10 -10 -10 -9 -8 -8 -8 ---------- Run | Scr Mat Min Exi Min Mat Gar Mat Machines Disabled . | . . . . . . . . Max in Single Turn . | . . . . . . . . Machines Sabotaged . | . . . . . . . . Garrisons Compromised . | . . . . . . . . Overloaded Fab Kills . | . . . . . . . . Fab Network Shutdowns . | . . . . . . . . Hacking | -11 -10 -10 -10 -9 -8 -8 -8 --------- Run | Scr Mat Min Exi Min Mat Gar Mat Machines Accessed 9 | . 1 . 1 . 2 . 5 Terminals 6 | . 1 . . . 1 . 4 Fabricators . | . . . . . . . . Repair Stations . | . . . . . . . . Recycling Units . | . . . . . . . . Scanalyzers . | . . . . . . . . Garrison Access 2 | . . . . . 1 . 1 Total Hacks 32 | . 2 . 1 . 7 . 22 Successful 16 | . 1 . 1 . 3 . 11 Failed 16 | . 1 . . . 4 . 11 Catastrophic 5 | . . . . . 1 . 4 Database Lockouts . | . . . . . . . . Manual 22 | . 2 . 1 . 5 . 14 Terminals 29 | . 2 . . . 6 . 21 Fabricators . | . . . . . . . . Repair Stations . | . . . . . . . . Recycling Units . | . . . . . . . . Scanalyzers . | . . . . . . . . Garrison Access 2 | . . . . . 1 . 1 Terminal Hacks 8 | . . . 1 . 1 . 6 Part Schematic 1 | . . . . . . . 1 Robot Analysis 1 | . . . . . . . 1 Branch Access Points 1 | . . . . . 1 . . Emergency Access Points 1 | . . . . . . . 1 Locate Traps 2 | . . . . . . . 2 Zone Layout 1 | . . . . . . . 1 EX-Prototype ID Bank 1 | . . . 1 . . . . Fabricator Hacks . | . . . . . . . . Repair Station Hacks . | . . . . . . . . Recycling Unit Hacks . | . . . . . . . . Scanalyzer . | . . . . . . . . Garrison Access Hacks 2 | . . . . . 1 . 1 Unlock Access 2 | . . . . . 1 . 1 Unauthorized Hacks 16 | . 2 . . . 3 . 11 Terminals 6 | . 1 . . . 1 . 4 Track 1 | . 1 . . . . . . Assimilate 1 | . . . . . . . 1 Botnet 4 | . . . . . 1 . 3 Fabricators . | . . . . . . . . Repair Stations . | . . . . . . . . Recycling Units . | . . . . . . . . Scanalyzers . | . . . . . . . . Garrison Access . | . . . . . . . . Data Cores Recovered . | . . . . . . . . Used . | . . . . . . . . Hacking Detections 6 | . 1 . . . 1 . 4 Full Trace Events . | . . . . . . . . Feedback Events . | . . . . . . . . Feedback Blocked . | . . . . . . . . Robot Schematics Acquired . | . . . . . . . . Robots Built . | . . . . . . . . Matter . | . . . . . . . . Time . | . . . . . . . . Total Robot Build Rating . | . . . . . . . . Part Schematics Acquired 1 | . . . . . . . 1 Parts Built . | . . . . . . . . Matter . | . . . . . . . . Time . | . . . . . . . . Total Part Build Rating . | . . . . . . . . Parts Repaired . | . . . . . . . . Time . | . . . . . . . . Parts Recycled . | . . . . . . . . Recycled Matter . | . . . . . . . . Retrieved Matter . | . . . . . . . . Retrieved Components . | . . . . . . . . Parts Scanalyzed . | . . . . . . . . Part Schematics Acquired . | . . . . . . . . Parts Damaged . | . . . . . . . . Bothacking | -11 -10 -10 -10 -9 -8 -8 -8 ------------ Run | Scr Mat Min Exi Min Mat Gar Mat Used RIF Installer 1 | . . . . . . 1 . Robots Hacked . | . . . . . . . . Non-combat . | . . . . . . . . Combat . | . . . . . . . . Robot Hacks Applied . | . . . . . . . . Relay Couplers Released . | . . . . . . . . Robots Rewired . | . . . . . . . . Allies Hacked . | . . . . . . . . Hacks Repelled . | . . . . . . . . Allies | -11 -10 -10 -10 -9 -8 -8 -8 -------- Run | Scr Mat Min Exi Min Mat Gar Mat Total Allies 1 | . . . . . . . 1 Largest Group 1 | . . . . . . . 1 Highest-Rated Group 10 | . . . . . . . 10 Highest-Rated Ally 10 | . . . . . . . 10 Total Orders 3 | . . . . . . . 3 STAY 1 | . . . . . . . 1 GOTO 2 | . . . . . . . 2 Ally Attacks . | . . . . . . . . Total Damage . | . . . . . . . . Kills . | . . . . . . . . Allies Corrupted . | . . . . . . . . Allies Melted . | . . . . . . . . Intel | -11 -10 -10 -10 -9 -8 -8 -8 ------- Run | Scr Mat Min Exi Min Mat Gar Mat Robot Analysis Total 1 | . . . . . . . 1 Derelict Logs Recovered . | . . . . . . . . Drone Launches . | . . . . . . . . Drone Recoveries . | . . . . . . . . Exploration | -11 -10 -10 -10 -9 -8 -8 -8 ------------- Run | Scr Mat Min Exi Min Mat Gar Mat Turns Passed 1675 | 48 274 141 198 281 94 387 252 Spaces Moved 1482 | 40 185 153 219 298 90 301 196 Core 3 | 3 . . . . . . . Treads . | . . . . . . . . Legs . | . . . . . . . . Wheels 1479 | 37 185 153 219 298 90 301 196 Hover . | . . . . . . . . Flight . | . . . . . . . . Fastest Speed 50 | 50 90 90 90 90 90 90 90 Average Speed 90 | 90 90 90 90 90 90 90 90 Slowest Speed 100 | 100 90 90 90 90 90 90 90 Overloaded Moves . | . . . . . . . . Propulsion Burnouts . | . . . . . . . . Robots Hopped . | . . . . . . . . Cave-ins Triggered . | . . . . . . . . Exploration Rate (%) 35 | 4 34 47 62 64 10 32 27 Regions Visited 7 Branch Regions 3 Pre-discovered Areas . | . . . . . . . . Known Exits Taken 1 | . . . . . 1 . . Unknown Exits Taken 5 | 1 1 1 1 1 . . . Scrap Searched 2 | . . 1 . 1 . . . Spaces Dug . | . . . . . . . . Terrain Destroyed . | . . . . . . . . Melee . | . . . . . . . . Projectile . | . . . . . . . . AOE . | . . . . . . . . Actions | -11 -10 -10 -10 -9 -8 -8 -8 --------- Run | Scr Mat Min Exi Min Mat Gar Mat Total 1698 | 48 228 156 220 308 97 373 268 Wait 112 | . 7 . . 9 . 29 67 Move 1476 | 39 184 152 218 297 90 300 196 Hop . | . . . . . . . . Pick Up 8 | 3 1 1 1 . . 2 . Fast Attach 14 | 5 2 1 . 1 3 1 1 Attach . | . . . . . . . . Detach 2 | . 1 . . . . . 1 Swap 6 | 1 . . . . . 3 2 Drop 11 | . 1 2 1 . 2 5 . Fire 57 | . 32 . . 1 2 21 1 Melee . | . . . . . . . . Ram . | . . . . . . . . Kick . | . . . . . . . . Crush . | . . . . . . . . Escape Stasis . | . . . . . . . . Rewire . | . . . . . . . . Trap . | . . . . . . . . Miscellaneous 12 | . . . . . . 12 . Route ------- -11/Scrapyard -10/Materials (discovered 2 exits: [*Min x2]) -10/Mines -10/Exiles -9/Mines -8/Materials -8/Garrison -8/Materials (discovered 1 exit: Gar) History --------- Turn | Location | Event 1 | -11/Scrapyard | Upgraded with Propulsion slot (x1) 1 | -11/Scrapyard | Upgraded with Weapon slot (x1) 26 | -11/Scrapyard | Discovered new exit (range 15) 49 | -11/Scrapyard | Entered Materials 296 | -10/Materials | Discovered new exit (range 14) 297 | -10/Materials | Discovered new exit (range 11) 300 | -10/Materials | Build established: Mutant 323 | -10/Materials | Entered Mines 335 | -10/Mines | Met a Derelict bent on vengeance 460 | -10/Mines | Deemed a non-threat by the Exiles lab entrance 460 | -10/Mines | Discovered new exit (range 5) 464 | -10/Mines | Entered Exiles 486 | -10/Exiles | Met 8R-AWN 501 | -10/Exiles | Met EX-HEX 528 | -10/Exiles | Met EX-BIN 539 | -10/Exiles | Aligned with FarCom system 540 | -10/Exiles | Given EX-Vault access code 564 | -10/Exiles | Opened EX-Vault 570 | -10/Exiles | Found Trap Reconfigurator 590 | -10/Exiles | Warned to stay clear of 0b10 Research branches 603 | -10/Exiles | Exiles lab attacked by MAIN.C 650 | -10/Exiles | Discovered new exit (range 12) 662 | -10/Exiles | Left Exiles lab with Trap Reconfigurator 662 | -10/Exiles | Entered Mines 664 | -9/Mines | Reached level 2 664 | -9/Mines | Upgraded with Utility slot (x1) 710 | -9/Mines | Found a hidden stash of uninstalled traps 887 | -9/Mines | Assembled infested the area 892 | -9/Mines | Assisted by a Guerilla fighting off Assembled 916 | -9/Mines | Core integrity fell below 50% 922 | -9/Mines | Discovered new exit (range 17) 943 | -9/Mines | Entered Materials 944 | -8/Materials | Core integrity fell below 50% 945 | -8/Materials | Reached level 3 971 | -8/Materials | Upgraded with Weapon slot (x1) 1037 | -8/Materials | Identified exit to Garrison 1037 | -8/Materials | Entered Garrison 1055 | -8/Garrison | Triggered checkpoint 1069 | -8/Garrison | Core integrity fell below 20% 1178 | -8/Garrison | Triggered checkpoint 1186 | -8/Garrison | Reached level 4 1261 | -8/Garrison | Build established: Gunner 1273 | -8/Garrison | Discovered new exit (range 8) 1285 | -8/Garrison | Installed Relay Interface Framework 1316 | -8/Garrison | Triggered checkpoint 1424 | -8/Garrison | Entered Materials 1555 | -8/Materials | Identified exit to Garrison 1676 | -8/Materials | Self-destructed Last Messages --------------- Testing... System interface override in place. >>Trojan(Botnet) Trojan loaded successfully. Testing... Terminal linked with 2 systems. Awaiting botnet instructions. 01552_ O-16 Technician: "IFF HANDSHAKE FAILED. SECURING TERMINAL." 01555_ Connecting with Garrison Access... >>Unlock Access door unlocked. 01555_ EXIT=UNLOCKED: GARRISON 01557_ O-16 Technician accesses terminal... 01557_ O-16 Technician IFF database reprogrammed. 01563_ Discarded System Shield. 01564_ Blade Trap reprogrammed. 01580_ K-01 Serf collects debris. 01672_ Technician 3a reports 0b10 security level has risen to 1. 01675_ C-30 ARC bursts open, deploying its payload. 01675_ S-10 Pest unfolds itself. Map ----- +----------------------------------------------------+ | # + "G" ! #????????????????????????????????? | | T # """ #????????????????????????????????? | | # # #????????????????????????????????? | | # ################??????????????????????????? | | # #??# # ??????????????????????????? | | #??# # ""??????????????????????????? | | ##?# # ""??????????????????????????? | | T#?# + ""??????????????????????????? | | ##?# # ??????????????????????????? | | #??# !! # ""??????????????????????????? | | # #??# !! # "T??????????????????????????? | | # #??# !! # ""?????????????????h????????? | | # #??# # ??????????????????????????? | | # ########+########+############????????????? | | #^^ ??????????? | | # ^ ??????????? | | +^ ??????????? | | # """" ??????????? | | # """" g g ??????????? | | # """" ############+##############????????????? | | # ^ ""#???# #???????????????????? | | # ^ ""#???# % s #???????????????????? | | # """" T"#???# """" """"o #???????????????????? | | # """" ""#???# """" """" #???????????????????? | | # """" ""#???# """"s"""" #???????????????????? | | # ####### @ #???????????????????? | | # w w + """" """ #???????????????????? | | # """" ####### """" """ #???????????????????? | | # """" #?????? """" """ #???????????????????? | | # """" #??????? #???????????????????? | | # #???????! #???????????????????? | | # ####????? Y #???????????????????? | | + #?????##### #####???????????????????? | | # ##### #?###?????###???????????????????????? | | # #???# ###T################????????????????? | | # #???# ^^ + #????????????????? | | + #???# ##### #????????????????? | | ###+#######^ /#???# ! #????????????????? | | # ^^ #???# #????????????????? | | "" # #???# #????????????????? | | """ # ^""" #???# #????????????????? | | """ # """ #???# #????????????????? | | """ # """ #???# ! #????????????????? | | "" # #???# #????????????????? | | # #???#####+######??????????????? | | # ###+#??????# #??????????????? | | ! # #??????????# #??????????????? | | # +??????????# #??????????????? | | #####??????????#########??????????????? | | #?????????????????????????????????????? | +----------------------------------------------------+ Best States ------------- Heat Dissipation 39 Energy Generation 14 Energy Capacity 250 Matter Stores 300 Matter Capacity 300 Sight Range 18 Robot Scan Range 10 Terrain Scan Density 60 Evasion (%) 42 Targeting Accuracy 5 Defensive Hacking 20 Item Schematics ----------------- Mni. Grenade Launcher | -8/Materials | Hacked Robot Schematics ------------------ None Fabricated ------------ Nothing Alien Tech Used ----------------- None Achievements -------------- None Challenges ------------ None RPGLIKE | -11 -10 -10 -10 -9 -8 -8 -8 --------- Run | Scr Mat Min Exi Min Mat Gar Mat Levels Raised 3 | . . . . 1 1 1 . XP Earned 8720 | 3000 550 500 350 500 1570 2250 . XP Spent 7400 | 2900 100 . . 1500 1300 1600 . Upgrades 15 | 6 1 . . 4 2 2 . Propulsion Slot 1 | 1 . . . . . . . Utility Slot 1 | . . . . 1 . . . Weapon Slot 2 | 1 . . . . 1 . . Inventory Capacity 4 | 3 . . . . . 1 . Sight Range 2 | . 1 . . 1 . . . Ranged Accuracy 3 | 1 . . . . 1 1 . KI Damage % 2 | . . . . 2 . . . Protomatter Created 209 | . 104 . . . . 105 . Integrity Restored 255 | . . . . . . 255 . Core 255 | . . . . . . 255 . Protomatter Decayed 132 | . 104 . 8 . . 20 . Game ------ Seed OpticalAntigravRifle Manual? 0 Play Time 00:23:20 Cumulative 47.1 hours Start 2019.12.19 @ 17:41:44 End 2019.12.20 @ 00:08:10 Sessions 3 Manual Loads 0 Difficulty Rogue Special Mode Winter2019/RPGLIKE Game No. 39 Rogue 39 Adventurer 0 Explorer 0 Win Type - Total 7 Types 7/0/0/0/0/0/0 Lore% 61 Gallery% 61 Achievement% 44 Wizard Run 0 Options --------- ASCII 0 Keyboard 0 Movement Vi Keybinds 0 Fullscreen 0 Font 14/SmallcapsGlow Map View 72x52 Tactical HUD 1 Map Filters NONE Filters NONE Steam 0 RUN: 7bcd9bdc-dcaa-4ed5-90c6-7916ced894a5